[Event "Late-Titled-Tuesday-Blitz-November-28-2023"]
[Site "Chess.com"]
[Date "2023.11.28"]
[Round "5"]
[White "FuenfgegenWilly"]
[Black "ChristopherYoo"]
[Result "0-1"]
[WhiteElo "2495"]
[BlackElo "3021"]
[TimeControl "180+1"]
[EndTime "14:53:54 PST"]
[Termination "ChristopherYoo won by resignation"]

1. e4 {[%clk 0:02:51.8]} 1... e5 {[%clk 0:02:58.5]} 2. Nc3 {[%clk 0:02:51.7]}
2... Nc6 {[%clk 0:02:58.4]} 3. f4 {[%clk 0:02:51.6]} 3... exf4 {[%clk
0:02:51.4]} 4. Nf3 {[%clk 0:02:52.2]} 4... g5 {[%clk 0:02:47.9]} 5. g3 {[%clk
0:02:52.8]} 5... Bg7 {[%clk 0:02:42.9]} 6. gxf4 {[%clk 0:02:05.1]} 6... g4
{[%clk 0:02:41.2]} 7. Ng5 {[%clk 0:01:54.2]} 7... h6 {[%clk 0:02:39.4]} 8. Qxg4
{[%clk 0:01:48]} 8... hxg5 {[%clk 0:02:39.5]} 9. Qxg5 {[%clk 0:01:35.7]} 9...
Qxg5 {[%clk 0:02:35.8]} 10. fxg5 {[%clk 0:01:36.6]} 10... Nge7 {[%clk
0:02:33.7]} 11. Nb5 {[%clk 0:01:31.1]} 11... Kd8 {[%clk 0:02:33.1]} 12. d3
{[%clk 0:01:27.6]} 12... d5 {[%clk 0:02:32.3]} 13. Bf4 {[%clk 0:01:25.2]} 13...
Be5 {[%clk 0:02:32.1]} 14. Bxe5 {[%clk 0:01:15.5]} 14... Nxe5 {[%clk 0:02:33]}
15. Bg2 {[%clk 0:01:11.7]} 15... dxe4 {[%clk 0:02:03.5]} 16. Bxe4 {[%clk
0:01:12.6]} 16... c6 {[%clk 0:02:02.5]} 17. Nd4 {[%clk 0:01:10.4]} 17... N7g6
{[%clk 0:01:57.7]} 18. O-O-O {[%clk 0:01:03.8]} 18... Bh3 {[%clk 0:01:50.9]} 19.
Rde1 {[%clk 0:00:46]} 19... Kc7 {[%clk 0:01:49.8]} 20. Rhg1 {[%clk 0:00:34.9]}
20... Rad8 {[%clk 0:01:48.5]} 21. Bxg6 {[%clk 0:00:23.7]} 21... Nxg6 {[%clk
0:01:47.8]} 22. Nf3 {[%clk 0:00:23.2]} 22... Be6 {[%clk 0:01:46.8]} 23. Rg3
{[%clk 0:00:18.6]} 23... Rh5 {[%clk 0:01:45]} 24. Rf1 {[%clk 0:00:18.5]} 24...
Rdh8 {[%clk 0:01:41.5]} 25. Kd2 {[%clk 0:00:16.8]} 25... Rh3 {[%clk 0:01:40.2]}
26. Rfg1 {[%clk 0:00:16.4]} 26... Rxg3 {[%clk 0:01:40.2]} 27. Rxg3 {[%clk
0:00:17.3]} 27... Bd5 {[%clk 0:01:40.8]} 28. Kc3 {[%clk 0:00:17.1]} 28... c5
{[%clk 0:01:40.2]} 29. a3 {[%clk 0:00:16.1]} 29... b5 {[%clk 0:01:39.9]} 30. b4
{[%clk 0:00:16.1]} 30... Kd6 {[%clk 0:01:40.2]} 31. bxc5+ {[%clk 0:00:15.5]}
31... Kxc5 {[%clk 0:01:41.1]} 32. d4+ {[%clk 0:00:15.8]} 32... Kb6 {[%clk
0:01:41.8]} 33. Kd3 {[%clk 0:00:11.4]} 33... a5 {[%clk 0:01:40.3]} 34. c3 {[%clk
0:00:11.7]} 34... Bc4+ {[%clk 0:01:34.8]} 35. Ke4 {[%clk 0:00:11.3]} 35... Kc6
{[%clk 0:01:32.5]} 36. Kf5 {[%clk 0:00:10.7]} 36... Kd6 {[%clk 0:01:27.9]} 37.
Kf6 {[%clk 0:00:11.1]} 37... Rh7 {[%clk 0:00:51.5]} 38. Ne5 {[%clk 0:00:07.3]}
38... Nxe5 {[%clk 0:00:51.3]} 39. dxe5+ {[%clk 0:00:07.8]} 39... Kd7 {[%clk
0:00:52.1]} 40. Rg2 {[%clk 0:00:07.5]} 40... Ke8 {[%clk 0:00:48.8]} 41. Rd2
{[%clk 0:00:06.3]} 41... Rh3 {[%clk 0:00:47.8]} 42. g6 {[%clk 0:00:04.6]} 42...
Rf3+ {[%clk 0:00:48]} 43. Kg7 {[%clk 0:00:04.8]} 43... fxg6 {[%clk 0:00:48.2]}
44. Kxg6 {[%clk 0:00:04.9]} 44... Rxc3 {[%clk 0:00:48.6]} 45. h4 {[%clk
0:00:05.2]} 45... Rh3 {[%clk 0:00:48.9]} 46. h5 {[%clk 0:00:05.2]} 46... Bf7+
{[%clk 0:00:49.6]} 47. Kf6 {[%clk 0:00:05.6]} 47... Rxh5 {[%clk 0:00:49.9]} 48.
e6 {[%clk 0:00:05.5]} 48... Rh6+ {[%clk 0:00:50.6]} 49. Kg7 {[%clk 0:00:05.7]}
49... Rxe6 {[%clk 0:00:50.8]} 50. Rf2 {[%clk 0:00:03.9]} 50... Rg6+ {[%clk
0:00:50.5]} 51. Kh7 {[%clk 0:00:04.4]} 51... Kf8 {[%clk 0:00:50.7]} 52. Rf5
{[%clk 0:00:03.7]} 52... Rg4 {[%clk 0:00:50.1]} 53. Kh6 {[%clk 0:00:02.7]} 53...
Rh4+ {[%clk 0:00:47.5]} 54. Kg5 {[%clk 0:00:02.7]} 54... Rh5+ {[%clk 0:00:48]}
55. Kf4 {[%clk 0:00:03.4]} 55... Rxf5+ {[%clk 0:00:48.5]} 56. Kxf5 {[%clk
0:00:04.3]} 56... b4 {[%clk 0:00:48.3]} 57. axb4 {[%clk 0:00:05.2]} 57... a4
{[%clk 0:00:48.6]} 58. Ke4 {[%clk 0:00:06.1]} 58... a3 {[%clk 0:00:49]} 0-1

[Event "Late-Titled-Tuesday-Blitz-November-28-2023"]
[Site "Chess.com"]
[Date "2023.11.28"]
[Round "5"]
[White "sakkikuska"]
[Black "Likvidator228"]
[Result "1/2-1/2"]
[WhiteElo "2401"]
[BlackElo "2555"]
[TimeControl "180+1"]
[EndTime "14:53:55 PST"]
[Termination "Game drawn by repetition"]

1. e4 {[%clk 0:03:00.9]} 1... c5 {[%clk 0:02:58.2]} 2. Nf3 {[%clk 0:03:01.3]}
2... g6 {[%clk 0:02:58.4]} 3. d4 {[%clk 0:03:01.5]} 3... cxd4 {[%clk 0:02:59.3]}
4. Nxd4 {[%clk 0:03:01.5]} 4... Bg7 {[%clk 0:02:59.4]} 5. c4 {[%clk 0:03:01.7]}
5... Nc6 {[%clk 0:03:00]} 6. Be3 {[%clk 0:03:00.9]} 6... Nf6 {[%clk 0:03:00.6]}
7. Nc3 {[%clk 0:03:01.2]} 7... Ng4 {[%clk 0:03:01.2]} 8. Qxg4 {[%clk 0:03:01.1]}
8... Bxd4 {[%clk 0:03:01.7]} 9. Bxd4 {[%clk 0:02:55.6]} 9... Nxd4 {[%clk
0:03:02.6]} 10. Qd1 {[%clk 0:02:55.4]} 10... e5 {[%clk 0:03:02.7]} 11. Bd3
{[%clk 0:02:55.5]} 11... d6 {[%clk 0:03:01.9]} 12. O-O {[%clk 0:02:55.9]} 12...
O-O {[%clk 0:03:02.1]} 13. Rc1 {[%clk 0:02:56.1]} 13... Be6 {[%clk 0:03:01.5]}
14. b3 {[%clk 0:02:41]} 14... a6 {[%clk 0:02:53.2]} 15. Ne2 {[%clk 0:02:39.8]}
15... Nc6 {[%clk 0:02:52.7]} 16. f4 {[%clk 0:02:35.3]} 16... Bg4 {[%clk
0:02:52.5]} 17. Qd2 {[%clk 0:02:31.8]} 17... Bxe2 {[%clk 0:02:51.8]} 18. Bxe2
{[%clk 0:02:32.1]} 18... Nd4 {[%clk 0:02:51.3]} 19. f5 {[%clk 0:02:29.6]} 19...
Qh4 {[%clk 0:02:42.8]} 20. Qe3 {[%clk 0:02:21.7]} 20... f6 {[%clk 0:02:35.9]}
21. g3 {[%clk 0:02:14]} 21... Qh3 {[%clk 0:02:23.7]} 22. Bf3 {[%clk 0:01:33.3]}
22... Kg7 {[%clk 0:02:17.9]} 23. Bg2 {[%clk 0:01:31.9]} 23... Qh6 {[%clk
0:02:18.5]} 24. Qxh6+ {[%clk 0:01:27.7]} 24... Kxh6 {[%clk 0:02:19.4]} 25. fxg6
{[%clk 0:01:26.6]} 25... Ne2+ {[%clk 0:02:18.4]} 26. Kf2 {[%clk 0:01:20.8]}
26... Nxc1 {[%clk 0:02:18.4]} 27. Rxc1 {[%clk 0:01:21.3]} 27... hxg6 {[%clk
0:02:17.8]} 28. Rd1 {[%clk 0:01:21.6]} 28... Rfd8 {[%clk 0:02:17.1]} 29. h4
{[%clk 0:01:19.5]} 29... b6 {[%clk 0:02:13.2]} 30. Ke3 {[%clk 0:01:16.4]} 30...
Ra7 {[%clk 0:02:11.6]} 31. Bh3 {[%clk 0:01:16]} 31... g5 {[%clk 0:02:06.7]} 32.
b4 {[%clk 0:01:11.2]} 32... gxh4 {[%clk 0:02:06.2]} 33. gxh4 {[%clk 0:01:10.5]}
33... Rc7 {[%clk 0:02:04.6]} 34. Be6 {[%clk 0:01:08.1]} 34... Kh5 {[%clk
0:01:57.4]} 35. a3 {[%clk 0:00:56]} 35... Kxh4 {[%clk 0:01:53.4]} 36. Rh1+
{[%clk 0:00:55.7]} 36... Kg5 {[%clk 0:01:51.6]} 37. Rg1+ {[%clk 0:00:52.3]}
37... Kh6 {[%clk 0:01:52.2]} 38. Bf5 {[%clk 0:00:51.8]} 38... Rf7 {[%clk
0:01:32.6]} 39. Rg6+ {[%clk 0:00:49.1]} 39... Kh5 {[%clk 0:01:32.8]} 40. Rg1
{[%clk 0:00:48.2]} 40... Rff8 {[%clk 0:01:20.9]} 41. Rh1+ {[%clk 0:00:40.7]}
41... Kg5 {[%clk 0:01:19.9]} 42. Rg1+ {[%clk 0:00:40.2]} 42... Kh6 {[%clk
0:01:20.3]} 43. Rg6+ {[%clk 0:00:33.6]} 43... Kh5 {[%clk 0:01:20.3]} 44. Rg1
{[%clk 0:00:23]} 44... b5 {[%clk 0:01:16.8]} 45. c5 {[%clk 0:00:20.3]} 45...
dxc5 {[%clk 0:01:17]} 46. bxc5 {[%clk 0:00:21.2]} 46... Rg8 {[%clk 0:01:13.1]}
47. Rh1+ {[%clk 0:00:20.8]} 47... Kg5 {[%clk 0:01:13.1]} 48. c6 {[%clk
0:00:21.1]} 48... Rgf8 {[%clk 0:00:52]} 49. c7 {[%clk 0:00:16.8]} 49... Rc8
{[%clk 0:00:52.4]} 50. Rg1+ {[%clk 0:00:15]} 50... Kh4 {[%clk 0:00:49.3]} 51.
Rh1+ {[%clk 0:00:14.7]} 51... Kg3 {[%clk 0:00:49.2]} 52. Rg1+ {[%clk 0:00:14.9]}
52... Kh2 {[%clk 0:00:49.1]} 53. Kf2 {[%clk 0:00:15]} 53... Rxc7 {[%clk
0:00:38.3]} 54. Rg2+ {[%clk 0:00:14.9]} 54... Kh1 {[%clk 0:00:38.4]} 55. Rg1+
{[%clk 0:00:15]} 55... Kh2 {[%clk 0:00:38.9]} 56. Rg2+ {[%clk 0:00:15.4]} 56...
Kh1 {[%clk 0:00:39.4]} 57. Rg1+ {[%clk 0:00:13.8]} 57... Kh2 {[%clk 0:00:39.8]}
1/2-1/2

[Event "Late-Titled-Tuesday-Blitz-November-28-2023"]
[Site "Chess.com"]
[Date "2023.11.28"]
[Round "5"]
[White "ahkashefi2800"]
[Black "Korchmar_Vasiliy"]
[Result "0-1"]
[WhiteElo "2575"]
[BlackElo "2734"]
[TimeControl "180+1"]
[EndTime "14:53:56 PST"]
[Termination "Korchmar_Vasiliy won on time"]

1. d4 {[%clk 0:02:25.9]} 1... Nf6 {[%clk 0:02:58.9]} 2. Nf3 {[%clk 0:02:19.7]}
2... d5 {[%clk 0:02:58.8]} 3. g3 {[%clk 0:02:18.6]} 3... g6 {[%clk 0:02:55.3]}
4. Bg2 {[%clk 0:02:19.5]} 4... c6 {[%clk 0:02:55.5]} 5. O-O {[%clk 0:02:16.8]}
5... Bg7 {[%clk 0:02:56]} 6. b3 {[%clk 0:02:14.8]} 6... O-O {[%clk 0:02:55.7]}
7. Bb2 {[%clk 0:02:03.7]} 7... Bf5 {[%clk 0:02:55.6]} 8. Nbd2 {[%clk 0:02:01.3]}
8... Ne4 {[%clk 0:02:54.4]} 9. e3 {[%clk 0:01:40.9]} 9... Qa5 {[%clk 0:02:50.5]}
10. Nxe4 {[%clk 0:01:21.9]} 10... Bxe4 {[%clk 0:02:49.5]} 11. Nd2 {[%clk
0:01:21.9]} 11... Bxg2 {[%clk 0:02:45.3]} 12. Kxg2 {[%clk 0:01:22.8]} 12... Nd7
{[%clk 0:02:45.5]} 13. c4 {[%clk 0:01:23]} 13... e5 {[%clk 0:02:39.8]} 14. dxe5
{[%clk 0:01:23.3]} 14... Nxe5 {[%clk 0:02:39.5]} 15. cxd5 {[%clk 0:00:44.8]}
15... Qxd5+ {[%clk 0:02:40.4]} 16. Nf3 {[%clk 0:00:44.3]} 16... Qe4 {[%clk
0:02:11.2]} 17. Bxe5 {[%clk 0:00:39.4]} 17... Bxe5 {[%clk 0:02:12.1]} 18. Rc1
{[%clk 0:00:39.9]} 18... Rfd8 {[%clk 0:01:40.3]} 19. Qc2 {[%clk 0:00:39.8]}
19... Qxc2 {[%clk 0:01:40.3]} 20. Rxc2 {[%clk 0:00:40.7]} 20... Bf6 {[%clk
0:01:40.9]} 21. Re1 {[%clk 0:00:33.2]} 21... a5 {[%clk 0:01:40]} 22. e4 {[%clk
0:00:32.6]} 22... a4 {[%clk 0:01:40]} 23. e5 {[%clk 0:00:32.7]} 23... Be7 {[%clk
0:01:38.5]} 24. Re3 {[%clk 0:00:29.8]} 24... Rd5 {[%clk 0:01:22.9]} 25. Nd2
{[%clk 0:00:25]} 25... Bc5 {[%clk 0:01:16.1]} 26. Re2 {[%clk 0:00:19]} 26... Bb4
{[%clk 0:00:58.7]} 27. Ne4 {[%clk 0:00:16.1]} 27... axb3 {[%clk 0:00:56.9]} 28.
axb3 {[%clk 0:00:12.9]} 28... Kg7 {[%clk 0:00:50.8]} 29. f4 {[%clk 0:00:10.3]}
29... Rd3 {[%clk 0:00:46.4]} 30. g4 {[%clk 0:00:03.1]} 30... Ra3 {[%clk
0:00:29.8]} 31. f5 {[%clk 0:00:03.3]} 31... Raxb3 {[%clk 0:00:30.3]} 32. f6+
{[%clk 0:00:03.6]} 32... Kf8 {[%clk 0:00:31]} 33. e6 {[%clk 0:00:02.7]} 33...
fxe6 {[%clk 0:00:29.8]} 34. Ng5 {[%clk 0:00:03.1]} 34... h6 {[%clk 0:00:22.8]}
35. Nxe6+ {[%clk 0:00:03.4]} 35... Kf7 {[%clk 0:00:23.5]} 36. g5 {[%clk
0:00:02.7]} 36... hxg5 {[%clk 0:00:23.1]} 37. Nxg5+ {[%clk 0:00:03.6]} 37...
Kxf6 {[%clk 0:00:23.1]} 38. Ne4+ {[%clk 0:00:03.9]} 38... Kg7 {[%clk 0:00:22.7]}
39. Ng5 {[%clk 0:00:01.8]} 39... Rd5 {[%clk 0:00:18.2]} 40. Ne6+ {[%clk
0:00:01.2]} 40... Kf6 {[%clk 0:00:18.5]} 41. Nf4 {[%clk 0:00:01.1]} 41... Rd4
{[%clk 0:00:16.2]} 0-1

[Event "Late-Titled-Tuesday-Blitz-November-28-2023"]
[Site "Chess.com"]
[Date "2023.11.28"]
[Round "5"]
[White "Zampronha1971"]
[Black "GoltsevDmitry2000"]
[Result "0-1"]
[WhiteElo "2385"]
[BlackElo "2667"]
[TimeControl "180+1"]
[EndTime "14:53:56 PST"]
[Termination "GoltsevDmitry2000 won on time"]

1. e4 {[%clk 0:03:00.9]} 1... e6 {[%clk 0:02:58.2]} 2. d4 {[%clk 0:03:00.2]}
2... d5 {[%clk 0:02:59.1]} 3. Nc3 {[%clk 0:02:59.7]} 3... c5 {[%clk 0:02:59.2]}
4. exd5 {[%clk 0:02:59.1]} 4... exd5 {[%clk 0:03:00.1]} 5. Nf3 {[%clk
0:02:58.9]} 5... Nf6 {[%clk 0:02:56]} 6. Be2 {[%clk 0:02:58.5]} 6... Nc6 {[%clk
0:02:55.4]} 7. O-O {[%clk 0:02:58.2]} 7... Bd6 {[%clk 0:02:55.9]} 8. Bg5 {[%clk
0:02:57.7]} 8... Be6 {[%clk 0:02:51.4]} 9. dxc5 {[%clk 0:02:54.1]} 9... Bxc5
{[%clk 0:02:51.5]} 10. Bxf6 {[%clk 0:02:49.5]} 10... gxf6 {[%clk 0:02:50.2]} 11.
Nb5 {[%clk 0:02:43.2]} 11... Rg8 {[%clk 0:02:47.1]} 12. Re1 {[%clk 0:02:27.2]}
12... Qb6 {[%clk 0:02:35.7]} 13. Rf1 {[%clk 0:02:26.2]} 13... a6 {[%clk
0:02:35.5]} 14. Nc3 {[%clk 0:02:24.7]} 14... Qc7 {[%clk 0:02:35]} 15. Nxd5
{[%clk 0:02:21.5]} 15... Qd8 {[%clk 0:02:15.1]} 16. Nf4 {[%clk 0:02:21.5]} 16...
Qc7 {[%clk 0:02:14.4]} 17. Nxe6 {[%clk 0:02:20.9]} 17... fxe6 {[%clk 0:02:14.2]}
18. c3 {[%clk 0:02:08.7]} 18... Ke7 {[%clk 0:02:06.8]} 19. Qc2 {[%clk
0:02:07.6]} 19... Rg7 {[%clk 0:02:05.3]} 20. Rfe1 {[%clk 0:01:57.4]} 20... Rag8
{[%clk 0:02:04.5]} 21. Bf1 {[%clk 0:01:50.3]} 21... Rg4 {[%clk 0:01:30.2]} 22.
Qxh7+ {[%clk 0:01:45.5]} 22... R8g7 {[%clk 0:01:30.1]} 23. Qf5 {[%clk
0:01:32.5]} 23... Ne5 {[%clk 0:01:29.3]} 24. Rxe5 {[%clk 0:01:14.1]} 24... fxe5
{[%clk 0:01:28.7]} 25. Qxe5 {[%clk 0:01:06.6]} 25... Qc6 {[%clk 0:01:19.5]} 26.
h3 {[%clk 0:00:45.4]} 26... R4g6 {[%clk 0:01:16.2]} 27. Qe2 {[%clk 0:00:27.5]}
27... Rf6 {[%clk 0:00:44.2]} 28. Ne5 {[%clk 0:00:20.3]} 28... Qd5 {[%clk
0:00:35.2]} 29. Nd3 {[%clk 0:00:20.4]} 29... Bd6 {[%clk 0:00:29.7]} 30. Re1
{[%clk 0:00:19.6]} 30... Rfg6 {[%clk 0:00:27.2]} 31. f3 {[%clk 0:00:15]} 31...
Bg3 {[%clk 0:00:21.9]} 32. Rd1 {[%clk 0:00:14.9]} 32... Bd6 {[%clk 0:00:20.6]}
33. Qe4 {[%clk 0:00:13.5]} 33... Qxe4 {[%clk 0:00:16.2]} 34. fxe4 {[%clk
0:00:13]} 34... Rg3 {[%clk 0:00:17.1]} 35. e5 {[%clk 0:00:10.7]} 35... Bc7
{[%clk 0:00:16.3]} 36. Rd2 {[%clk 0:00:11.1]} 36... Rxh3 {[%clk 0:00:15.3]} 37.
Nf4 {[%clk 0:00:08]} 37... Rh4 {[%clk 0:00:13.8]} 38. Ne2 {[%clk 0:00:04]} 38...
Bb6+ {[%clk 0:00:13.1]} 39. Nd4 {[%clk 0:00:04.1]} 39... Rg5 {[%clk 0:00:13.1]}
40. Kf2 {[%clk 0:00:01.5]} 40... Rxe5 {[%clk 0:00:13.1]} 41. g3 {[%clk
0:00:01.9]} 41... Rh2+ {[%clk 0:00:12.4]} 42. Kf3 {[%clk 0:00:02.2]} 42... Rxd2
{[%clk 0:00:13.3]} 0-1

[Event "Late-Titled-Tuesday-Blitz-November-28-2023"]
[Site "Chess.com"]
[Date "2023.11.28"]
[Round "5"]
[White "Fortitudine"]
[Black "PawnEatingZombie"]
[Result "1/2-1/2"]
[WhiteElo "2360"]
[BlackElo "2187"]
[TimeControl "180+1"]
[EndTime "14:54:06 PST"]
[Termination "Game drawn - insufficient material"]

1. c4 {[%clk 0:03:00.9]} 1... Nf6 {[%clk 0:02:57.8]} 2. g3 {[%clk 0:02:59.6]}
2... g6 {[%clk 0:02:57.6]} 3. Bg2 {[%clk 0:02:59.5]} 3... Bg7 {[%clk 0:02:58]}
4. Nc3 {[%clk 0:03:00.2]} 4... c6 {[%clk 0:02:56]} 5. e4 {[%clk 0:03:00.2]} 5...
d6 {[%clk 0:02:56.2]} 6. Nge2 {[%clk 0:02:59.7]} 6... O-O {[%clk 0:02:56.2]} 7.
O-O {[%clk 0:03:00.1]} 7... e5 {[%clk 0:02:55.2]} 8. d3 {[%clk 0:02:57.5]} 8...
Na6 {[%clk 0:02:50.8]} 9. h3 {[%clk 0:02:54.1]} 9... Nc5 {[%clk 0:02:43.7]} 10.
Be3 {[%clk 0:02:51.4]} 10... a5 {[%clk 0:02:40.7]} 11. d4 {[%clk 0:02:47.2]}
11... exd4 {[%clk 0:02:38.7]} 12. Nxd4 {[%clk 0:02:48.1]} 12... a4 {[%clk
0:02:29]} 13. Re1 {[%clk 0:02:33.1]} 13... Re8 {[%clk 0:02:28.2]} 14. Qc2 {[%clk
0:02:27.7]} 14... h6 {[%clk 0:02:25]} 15. Rad1 {[%clk 0:02:24.2]} 15... Qe7
{[%clk 0:02:18.8]} 16. f3 {[%clk 0:02:12]} 16... Nh5 {[%clk 0:01:59.9]} 17. Bf2
{[%clk 0:02:08.1]} 17... Be5 {[%clk 0:01:57.4]} 18. f4 {[%clk 0:02:05.5]} 18...
Bg7 {[%clk 0:01:57.2]} 19. b4 {[%clk 0:01:36.5]} 19... axb3 {[%clk 0:01:55.7]}
20. axb3 {[%clk 0:01:37.4]} 20... Bd7 {[%clk 0:01:15.7]} 21. b4 {[%clk
0:01:19.7]} 21... Ne6 {[%clk 0:01:15.2]} 22. Nxe6 {[%clk 0:01:19.9]} 22... Bxe6
{[%clk 0:01:13.2]} 23. c5 {[%clk 0:01:15.1]} 23... dxc5 {[%clk 0:01:01.7]} 24.
bxc5 {[%clk 0:01:08.2]} 24... Nxg3 {[%clk 0:00:52.6]} 25. Na4 {[%clk 0:00:32]}
25... Nh5 {[%clk 0:00:46]} 26. f5 {[%clk 0:00:29]} 26... Bc8 {[%clk 0:00:20.9]}
27. Nb6 {[%clk 0:00:28.7]} 27... Ra5 {[%clk 0:00:18.3]} 28. fxg6 {[%clk
0:00:27.9]} 28... fxg6 {[%clk 0:00:17.2]} 29. Nxc8 {[%clk 0:00:15.6]} 29... Rxc8
{[%clk 0:00:16.3]} 30. Rd3 {[%clk 0:00:12.3]} 30... Kh7 {[%clk 0:00:15.7]} 31.
Red1 {[%clk 0:00:12.2]} 31... Nf4 {[%clk 0:00:11.1]} 32. Rd7 {[%clk 0:00:12.8]}
32... Qg5 {[%clk 0:00:10.9]} 33. Be3 {[%clk 0:00:11]} 33... Qxg2+ {[%clk
0:00:08.6]} 34. Qxg2 {[%clk 0:00:10.3]} 34... Nxg2 {[%clk 0:00:08.3]} 35. Kxg2
{[%clk 0:00:11.1]} 35... Rg8 {[%clk 0:00:06.3]} 36. Rxb7 {[%clk 0:00:09.7]}
36... Ra2+ {[%clk 0:00:06.8]} 37. Kh1 {[%clk 0:00:09.8]} 37... Re2 {[%clk
0:00:06.5]} 38. Bd4 {[%clk 0:00:08.5]} 38... Rxe4 {[%clk 0:00:06.4]} 39. Bxg7
{[%clk 0:00:05.3]} 39... Rxg7 {[%clk 0:00:06]} 40. Rdd7 {[%clk 0:00:05.7]} 40...
Rxd7 {[%clk 0:00:05.5]} 41. Rxd7+ {[%clk 0:00:06.6]} 41... Kg8 {[%clk
0:00:05.8]} 42. Rd6 {[%clk 0:00:07]} 42... Rh4 {[%clk 0:00:05.2]} 43. Rxg6+
{[%clk 0:00:07.4]} 43... Kf7 {[%clk 0:00:04.8]} 44. Rxc6 {[%clk 0:00:08.1]}
44... Rxh3+ {[%clk 0:00:05.1]} 45. Kg2 {[%clk 0:00:08.9]} 45... Rc3 {[%clk
0:00:05.6]} 46. Rxh6 {[%clk 0:00:07.4]} 46... Ke7 {[%clk 0:00:06.1]} 47. Rh3
{[%clk 0:00:07.6]} 47... Rxc5 {[%clk 0:00:05.9]} 48. Re3+ {[%clk 0:00:08]} 48...
Kd6 {[%clk 0:00:05.7]} 49. Rf3 {[%clk 0:00:08.9]} 49... Rc4 {[%clk 0:00:06]} 50.
Kg3 {[%clk 0:00:09.8]} 50... Kd7 {[%clk 0:00:05.8]} 51. Rf4 {[%clk 0:00:10.3]}
51... Rxf4 {[%clk 0:00:04.9]} 52. Kxf4 {[%clk 0:00:11.2]} 1/2-1/2

[Event "Late-Titled-Tuesday-Blitz-November-28-2023"]
[Site "Chess.com"]
[Date "2023.11.28"]
[Round "5"]
[White "andrzej"]
[Black "jinxy2009"]
[Result "1-0"]
[WhiteElo "2462"]
[BlackElo "2278"]
[TimeControl "180+1"]
[EndTime "14:54:07 PST"]
[Termination "andrzej won on time"]

1. e4 {[%clk 0:03:00.9]} 1... c5 {[%clk 0:02:57.9]} 2. Nf3 {[%clk 0:03:01.1]}
2... Nc6 {[%clk 0:02:56.9]} 3. d4 {[%clk 0:03:01.6]} 3... cxd4 {[%clk
0:02:57.8]} 4. Nxd4 {[%clk 0:03:02.2]} 4... e5 {[%clk 0:02:55.2]} 5. Nb5 {[%clk
0:03:01.8]} 5... d6 {[%clk 0:02:55.6]} 6. N1c3 {[%clk 0:03:01.3]} 6... a6 {[%clk
0:02:55.9]} 7. Na3 {[%clk 0:03:01.8]} 7... Be7 {[%clk 0:02:56.5]} 8. Nc4 {[%clk
0:03:01.2]} 8... b5 {[%clk 0:02:48.5]} 9. Ne3 {[%clk 0:02:59.5]} 9... Nf6 {[%clk
0:02:48.8]} 10. Bd3 {[%clk 0:02:57.9]} 10... O-O {[%clk 0:02:36]} 11. O-O {[%clk
0:02:58]} 11... Be6 {[%clk 0:02:25.3]} 12. Ned5 {[%clk 0:02:48.3]} 12... Bxd5
{[%clk 0:02:14.3]} 13. exd5 {[%clk 0:02:48.1]} 13... Nd4 {[%clk 0:02:15.1]} 14.
a3 {[%clk 0:02:26.5]} 14... Rc8 {[%clk 0:01:55.7]} 15. Ne2 {[%clk 0:02:26]}
15... Nxe2+ {[%clk 0:01:52.2]} 16. Qxe2 {[%clk 0:02:19.2]} 16... Re8 {[%clk
0:01:42.8]} 17. c4 {[%clk 0:02:15.9]} 17... bxc4 {[%clk 0:01:28.1]} 18. Bxc4
{[%clk 0:02:15.8]} 18... Nd7 {[%clk 0:01:25.3]} 19. Bxa6 {[%clk 0:02:10.7]}
19... Rc5 {[%clk 0:01:24.4]} 20. Rd1 {[%clk 0:02:03.4]} 20... f5 {[%clk
0:01:21.1]} 21. b4 {[%clk 0:01:59.2]} 21... Rc7 {[%clk 0:01:08.1]} 22. Bb5
{[%clk 0:01:54.7]} 22... Rf8 {[%clk 0:01:00.4]} 23. Bc6 {[%clk 0:01:47]} 23...
Nf6 {[%clk 0:00:57.9]} 24. b5 {[%clk 0:01:43.7]} 24... f4 {[%clk 0:00:48.3]} 25.
b6 {[%clk 0:01:39.3]} 25... Rc8 {[%clk 0:00:47.8]} 26. b7 {[%clk 0:01:37.9]}
26... Rb8 {[%clk 0:00:47.5]} 27. a4 {[%clk 0:01:35.2]} 27... g5 {[%clk
0:00:26.1]} 28. a5 {[%clk 0:01:31.8]} 28... g4 {[%clk 0:00:19]} 29. a6 {[%clk
0:01:21.3]} 29... Qb6 {[%clk 0:00:18.7]} 30. Bd2 {[%clk 0:00:57.1]} 30... Kh8
{[%clk 0:00:14.8]} 31. Rdb1 {[%clk 0:00:55.4]} 31... Qa7 {[%clk 0:00:14.7]} 32.
Ba5 {[%clk 0:00:36]} 32... Bd8 {[%clk 0:00:14.3]} 33. Bxd8 {[%clk 0:00:33.4]}
33... Rfxd8 {[%clk 0:00:15.2]} 34. Kh1 {[%clk 0:00:29.1]} 34... Rg8 {[%clk
0:00:14.3]} 35. f3 {[%clk 0:00:25.8]} 35... g3 {[%clk 0:00:13.3]} 36. h3 {[%clk
0:00:25.9]} 36... e4 {[%clk 0:00:10.1]} 37. fxe4 {[%clk 0:00:24.9]} 37... Ng4
{[%clk 0:00:10]} 38. Qb2+ {[%clk 0:00:14.6]} 38... Ne5 {[%clk 0:00:07.3]} 39.
Qb6 {[%clk 0:00:13.1]} 39... Qxb6 {[%clk 0:00:05.2]} 40. Rxb6 {[%clk 0:00:13.8]}
40... f3 {[%clk 0:00:04.2]} 41. a7 {[%clk 0:00:11.2]} 41... f2 {[%clk
0:00:02.6]} 42. axb8=Q {[%clk 0:00:08.7]} 42... Rxb8 {[%clk 0:00:03.5]} 43. Rbb1
{[%clk 0:00:07.4]} 43... Nd3 {[%clk 0:00:02.6]} 44. Rf1 {[%clk 0:00:07.1]} 1-0